Workbook

Sheet Area of Triangle
A1: 1 | B1: 2 | C1: 3 | D1: 4 | E1: 5 | F1: 6 | G1: 7 | H1: 8 | I1: 9 | J1: 10 | K1: 11 | L1: 12 | M1: 13 | N1: 14 | O1: 15 | P1: 16 | Q1: 17 | R1: 18 | S1: 19
B2: x1 | C2: x2 | D2: x3 | E2: y1 | F2: y2 | G2: y3
A3: Фамилия И.О #1 | B3: -0.3002321591 | C3: -1.277683168 | D3: 0.2442573077 | E3: 0.9863038031 | F3: -0.2242859409 | G3: -0.1435046215
A4: Фамилия И.О #2 | B4: 1.27647354 | C4: 1.198350219 | D4: 1.733133104 | E4: -1.383509698 | F4: -0.03255536285 | G4: -0.8085476111
A5: Фамилия И.О #3 | B5: -2.18358764 | C5: -0.2341812433 | D5: 1.095022526 | E5: -2.094038791 | F5: 0.9689097169 | G5: 0.394354629
A6: Фамилия И.О #4 | B6: -1.086700649 | C6: -0.6902041605 | D6: -1.690432327 | E6: 1.407820491 | F6: 1.111045549 | G6: 0.02321939974
A7: Фамилия И.О #5 | B7: -1.846910891 | C7: -0.9776294974 | D7: -0.773507054 | E7: -0.08835513654 | F7: -0.08589836398 | G7: 0.8728170542
A8: Фамилия И.О #6 | B8: -2.117931217 | C8: -0.5679248716 | D8: -0.4040475687 | E8: -0.2617935024 | F8: -0.4645812623 | G8: -0.342849944
A9: Фамилия И.О #7 | B9: 0.1348530532 | C9: -0.3654929515 | D9: -0.3269906301 | E9: 0.3191735232 | F9: 0.3187710718 | G9: 1.380526555
A10: Фамилия И.О #8 | B10: -0.3702405138 | C10: 1.342641553 | D10: -0.08528445505 | E10: 0.8305960364 | F10: 0.03194372766 | G10: 1.477769729
A11: Фамилия И.О #9 | B11: -0.1861576493 | C11: -0.5132073966 | D11: 1.972211976 | E11: 0.1708451691 | F11: 0.6083973858 | G11: -0.5382401014 | U11: 0.7448217575
A12: Фамилия И.О #10 | B12: 0.8656729733 | C12: 2.375654731 | D12: -0.6549066711 | E12: -1.072860414 | F12: -0.2948740985 | G12: 0.1191983756
A13: Фамилия И.О #11 | B13: 1.661455826 | C13: -1.612397682 | D13: 0.5389483704 | E13: -0.9215546015 | F13: -1.697821972 | G13: -0.5239712664
A14: Фамилия И.О #12 | B14: 0.9021914593 | C14: 1.918915586 | D14: -0.0845170689 | E14: -1.450512173 | F14: -0.4504818207 | G14: 0.7628204912
A15: Фамилия И.О #13 | B15: -0.5237950518 | C15: 0.6751383808 | D15: -0.3813238436 | E15: 0.03737795851 | F15: -0.3191735232 | G15: -1.745984264
H17: x1 | I17: x2 | J17: x3 | K17: y1 | L17: y2 | M17: y3
A18: num_iterations = | B18: =2^C18 -> 512 | C18: 9 | H18: 0.9021914593 | I18: 1.918915586 | J18: -0.0845170689 | K18: -1.450512173 | L18: -0.4504818207 | M18: 0.7628204912
I20: X | J20: Y
A21: A | H21: A | I21: =H18 -> 0.9021914593 | J21: =K18 -> -1.450512173 | M21: k1 = | N21: 0.9835808212
A22: B | B22: 1 | C22: =M29 -> 0.3650084855 | H22: B | I22: =I18 -> 1.918915586 | J22: =L18 -> -0.4504818207 | M22: k2 = | N22: -2.243147394
A23: C | B23: =B18 -> 512 | C23: =M29 -> 0.3650084855 | H23: C | I23: =J18 -> -0.0845170689 | J23: =M18 -> 0.7628204912 | M23: k3 = | N23: -0.6056117278
I24: =I21 -> 0.9021914593 | J24: =J21 -> -1.450512173
M25: CrossProd | N25: 0 | O25: 0 | P25: =(I21-I22)*(J21-J23)-(I21-I23)*(J21-J22) -> 3.237087197
H26: МИН | I26: =MIN(I21:I23) -> -0.0845170689 | J26: =MIN(J21:J23) -> -1.450512173
H27: МАКС | I27: =MAX(I21:I23) -> 1.918915586 | J27: =MAX(J21:J23) -> 0.7628204912 | L27: Ssq = | M27: =I32*J32 -> 4.434262936 | P27: xrand | Q27: yrand | R27: Ratioi
L28: Str = | M28: =SQRT(N25^2+O25^2+P25^2)/2 -> 1.618543599 | O28: 1 | P28: 0.3502721351 | Q28: 0.2072744169 | R28: 0 | S28: 0
L29: Ratio = | M29: =M28/M27 -> 0.3650084855 | O29: 2 | P29: 1.283406915 | Q29: 0.1646629357 | R29: 0.5 | S29: 1
H30: ЦТ | I30: =AVERAGE(I21:I23) -> 0.9121966589 | J30: =AVERAGE(J21:J23) -> -0.3793911674 | L30: Оценка = | M30: 0.337890625 | O30: 3 | P30: 1.380776286 | Q30: -0.9272581493 | R30: 0.3333333333 | S30: 1
O31: 4 | P31: 0.6747996863 | Q31: -0.5303127261 | R31: 0.5 | S31: 2
I32: =I27-I26 -> 2.003432655 | J32: =J27-J26 -> 2.213332664 | O32: 5 | P32: 1.116344731 | Q32: -1.219658097 | R32: 0.6 | S32: 3
I33: =AVERAGE(I26:I27) -> 0.9171992588 | J33: =AVERAGE(J26:J27) -> -0.3438458407 | O33: 6 | P33: 1.136698829 | Q33: -0.4071344403 | R33: 0.6666666667 | S33: 4
O34: 7 | P34: 0.797995416 | Q34: 0.3352874867 | R34: 0.7142857143 | S34: 5
O35: 8 | P35: 0.06466634783 | Q35: -0.1022164023 | R35: 0.625 | S35: 5
O36: 9 | P36: 1.277407323 | Q36: -0.6068162437 | R36: 0.5555555556 | S36: 5
O37: 10 | P37: 1.367376853 | Q37: 0.2948759853 | R37: 0.6 | S37: 6
O38: 11 | P38: -0.0821394189 | Q38: -1.255392333 | R38: 0.5454545455 | S38: 6
O39: 12 | P39: 1.599107153 | Q39: 0.7226762697 | R39: 0.5 | S39: 6
O40: 13 | P40: 0.0166306769 | Q40: -0.7803059398 | R40: 0.4615384615 | S40: 6
O41: 14 | P41: 0.6342758657 | Q41: -1.030932393 | R41: 0.4285714286 | S41: 6
O42: 15 | P42: 0.693914268 | Q42: -0.0006144349878 | R42: 0.4 | S42: 6
O43: 16 | P43: 0.8222452727 | Q43: 0.1125299063 | R43: 0.4375 | S43: 7
O44: 17 | P44: 1.306641754 | Q44: -0.5199843251 | R44: 0.4705882353 | S44: 8
O45: 18 | P45: 0.632683362 | Q45: -0.04327182603 | R45: 0.5 | S45: 9
O46: 19 | P46: 0.3528500422 | Q46: -1.095442353 | R46: 0.5263157895 | S46: 10
O47: 20 | P47: 0.8223799716 | Q47: 0.005091317248 | R47: 0.5 | S47: 10
O48: 21 | P48: 0.8872114452 | Q48: -0.09279142305 | R48: 0.5238095238 | S48: 11
O49: 22 | P49: 1.085757818 | Q49: -1.357935188 | R49: 0.5454545455 | S49: 12
O50: 23 | P50: 0.4099594971 | Q50: 0.397973981 | R50: 0.5217391304 | S50: 12
O51: 24 | P51: 1.213107002 | Q51: 0.5743578458 | R51: 0.5416666667 | S51: 13
O52: 25 | P52: 1.290999489 | Q52: -0.1460838086 | R52: 0.52 | S52: 13
O53: 26 | P53: 0.7462450178 | Q53: 0.2655316643 | R53: 0.5384615385 | S53: 14
O54: 27 | P54: 1.660550616 | Q54: 0.7370705963 | R54: 0.5185185185 | S54: 14
O55: 28 | P55: 1.138467588 | Q55: -0.8760889633 | R55: 0.5 | S55: 14
O56: 29 | P56: 0.8246748677 | Q56: -0.6009682764 | R56: 0.5172413793 | S56: 15
O57: 30 | P57: 0.4016270346 | Q57: -1.102830412 | R57: 0.5333333333 | S57: 16
O58: 31 | P58: 1.174798787 | Q58: -0.3278008696 | R58: 0.5161290323 | S58: 16
O59: 32 | P59: 0.2746647519 | Q59: 0.04691362363 | R59: 0.53125 | S59: 17
O60: 33 | P60: 0.5809300978 | Q60: 0.4543644911 | R60: 0.5454545455 | S60: 18
O61: 34 | P61: 1.872405906 | Q61: 0.6765991212 | R61: 0.5294117647 | S61: 18
O62: 35 | P62: 1.313193755 | Q62: -0.6600395005 | R62: 0.5142857143 | S62: 18
O63: 36 | P63: 1.8352123 | Q63: 0.4394472141 | R63: 0.5277777778 | S63: 19
O64: 37 | P64: 1.433332251 | Q64: -0.9820243999 | R64: 0.5135135135 | S64: 19
O65: 38 | P65: 1.000089337 | Q65: 0.573027515 | R65: 0.5 | S65: 19
O66: 39 | P66: 0.7110926728 | Q66: -1.270126762 | R66: 0.4871794872 | S66: 19
O67: 40 | P67: 1.552055214 | Q67: 0.06050927686 | R67: 0.475 | S67: 19
O68: 41 | P68: 1.031173967 | Q68: -0.4391597392 | R68: 0.4634146341 | S68: 19
O69: 42 | P69: 0.6695029638 | Q69: -1.014756289 | R69: 0.4761904762 | S69: 20
O70: 43 | P70: 1.290734391 | Q70: -0.7822948397 | R70: 0.4651162791 | S70: 20
O71: 44 | P71: 0.697881914 | Q71: 0.2253468099 | R71: 0.4772727273 | S71: 21
O72: 45 | P72: 0.8114877528 | Q72: 0.6401854721 | R72: 0.4888888889 | S72: 22
O73: 46 | P73: 1.793343401 | Q73: 0.6349520111 | R73: 0.4782608696 | S73: 22
O74: 47 | P74: 1.249225166 | Q74: -0.9678583034 | R74: 0.4680851064 | S74: 22
O75: 48 | P75: 1.07754262 | Q75: 0.4854573447 | R75: 0.4791666667 | S75: 23
O76: 49 | P76: 0.9904643385 | Q76: 0.4328216814 | R76: 0.4693877551 | S76: 23
O77: 50 | P77: 0.3070292602 | Q77: 0.1801097592 | R77: 0.46 | S77: 23
O78: 51 | P78: 0.0671203033 | Q78: -1.211882443 | R78: 0.4705882353 | S78: 24
O79: 52 | P79: 0.01946771214 | Q79: -0.2647447217 | R79: 0.4615384615 | S79: 24
O80: 53 | P80: 1.565169008 | Q80: 0.05514178009 | R80: 0.4528301887 | S80: 24
O81: 54 | P81: 0.1910134101 | Q81: -1.185077676 | R81: 0.4444444444 | S81: 24
O82: 55 | P82: 1.513573132 | Q82: 0.3801503984 | R82: 0.4363636364 | S82: 24
O83: 56 | P83: 1.394547335 | Q83: -0.4679291314 | R83: 0.4285714286 | S83: 24
O84: 57 | P84: 1.311825272 | Q84: 0.2431221081 | R84: 0.4385964912 | S84: 25
O85: 58 | P85: 0.4484707161 | Q85: -1.263488564 | R85: 0.4310344828 | S85: 25
O86: 59 | P86: 0.6240227501 | Q86: -0.7643235012 | R86: 0.4237288136 | S86: 25
O87: 60 | P87: 0.5903864839 | Q87: -1.437181425 | R87: 0.4333333333 | S87: 26
O88: 61 | P88: 0.7909638484 | Q88: 0.2456561217 | R88: 0.4262295082 | S88: 26
O89: 62 | P89: 0.1138796785 | Q89: -0.1750838055 | R89: 0.4193548387 | S89: 26
O90: 63 | P90: 0.729371596 | Q90: -1.298286925 | R90: 0.4126984127 | S90: 26
O91: 64 | P91: 1.540482574 | Q91: 0.3906613834 | R91: 0.40625 | S91: 26
O92: 65 | P92: 1.345706337 | Q92: -1.068779274 | R92: 0.4 | S92: 26
O93: 66 | P93: 1.258171416 | Q93: 0.7497593977 | R93: 0.3939393939 | S93: 26
O94: 67 | P94: 0.4336731854 | Q94: 0.08486129548 | R94: 0.3880597015 | S94: 26
O95: 68 | P95: 1.698480528 | Q95: -0.9316515126 | R95: 0.3970588235 | S95: 27
O96: 69 | P96: 0.09318357931 | Q96: 0.3212079329 | R96: 0.3913043478 | S96: 27
O97: 70 | P97: -0.02671728229 | Q97: 0.07691387522 | R97: 0.3857142857 | S97: 27
O98: 71 | P98: 0.6261464068 | Q98: -0.668692719 | R98: 0.3802816901 | S98: 27
O99: 72 | P99: 1.053619719 | Q99: 0.1648755986 | R99: 0.3888888889 | S99: 28
O100: 73 | P100: 0.9434152651 | Q100: -0.7967374508 | R100: 0.3835616438 | S100: 28
O101: 74 | P101: 1.397900955 | Q101: -0.4114985162 | R101: 0.3918918919 | S101: 29
O102: 75 | P102: 1.476026538 | Q102: -0.7998482402 | R102: 0.4 | S102: 30
O103: 76 | P103: 1.12901765 | Q103: -0.2611753614 | R103: 0.4078947368 | S103: 31
O104: 77 | P104: 1.576997671 | Q104: -0.05539018416 | R104: 0.4155844156 | S104: 32
O105: 78 | P105: 0.6848538584 | Q105: -1.250438552 | R105: 0.4102564103 | S105: 32
O106: 79 | P106: 1.430848919 | Q106: -0.6965869214 | R106: 0.4050632911 | S106: 32
O107: 80 | P107: -0.0269116881 | Q107: -1.274973946 | R107: 0.4125 | S107: 33
O108: 81 | P108: 0.4571179536 | Q108: -0.1079395686 | R108: 0.4074074074 | S108: 33
O109: 82 | P109: 0.03028708839 | Q109: 0.2413820185 | R109: 0.4146341463 | S109: 34
O110: 83 | P110: 0.2215979349 | Q110: -0.5739738019 | R110: 0.4096385542 | S110: 34
O111: 84 | P111: 1.174989132 | Q111: -0.3854401808 | R111: 0.4047619048 | S111: 34
O112: 85 | P112: 1.83813579 | Q112: -0.6679924616 | R112: 0.4117647059 | S112: 35
O113: 86 | P113: 1.66164994 | Q113: 0.001503487472 | R113: 0.4069767442 | S113: 35
O114: 87 | P114: 1.867855998 | Q114: 0.6325090256 | R114: 0.4022988506 | S114: 35
O115: 88 | P115: 0.8423087171 | Q115: -1.291908883 | R115: 0.3977272727 | S115: 35
O116: 89 | P116: 0.7398384625 | Q116: 0.3837603915 | R116: 0.404494382 | S116: 36
O117: 90 | P117: 0.8256810492 | Q117: -0.6029521631 | R117: 0.4 | S117: 36
O118: 91 | P118: 1.655491288 | Q118: -0.266369245 | R118: 0.4065934066 | S118: 37
O119: 92 | P119: 0.6233791092 | Q119: 0.5025326493 | R119: 0.402173913 | S119: 37
O120: 93 | P120: -0.02338157464 | Q120: -0.7471199656 | R120: 0.3978494624 | S120: 37
O121: 94 | P121: 0.8141533097 | Q121: -0.3086129196 | R121: 0.3936170213 | S121: 37
O122: 95 | P122: 1.162402669 | Q122: -0.7535911461 | R122: 0.4 | S122: 38
O123: 96 | P123: 0.6952614955 | Q123: -1.122283003 | R123: 0.40625 | S123: 39
O124: 97 | P124: 1.142026361 | Q124: 0.6178416145 | R124: 0.4020618557 | S124: 39
O125: 98 | P125: -0.05843838849 | Q125: -1.275855733 | R125: 0.3979591837 | S125: 39
O126: 99 | P126: 1.246505396 | Q126: -0.3525552592 | R126: 0.3939393939 | S126: 39
O127: 100 | P127: 0.7654625342 | Q127: 0.3363895874 | R127: 0.4 | S127: 40
O128: 101 | P128: 1.603622192 | Q128: -1.18329326 | R128: 0.396039604 | S128: 40
O129: 102 | P129: 0.5605697905 | Q129: -1.342142194 | R129: 0.3921568627 | S129: 40
O130: 103 | P130: 1.044014782 | Q130: 0.4795901164 | R130: 0.3883495146 | S130: 40
O131: 104 | P131: 1.073650683 | Q131: -1.449116935 | R131: 0.3846153846 | S131: 40
O132: 105 | P132: 1.51498938 | Q132: -1.126216213 | R132: 0.380952381 | S132: 40
O133: 106 | P133: 0.04656367949 | Q133: 0.4446498047 | R133: 0.3773584906 | S133: 40
O134: 107 | P134: 0.9745951876 | Q134: -0.7547193679 | R134: 0.3738317757 | S134: 40
O135: 108 | P135: 1.389939869 | Q135: -0.1835570784 | R135: 0.3796296296 | S135: 41
O136: 109 | P136: 0.8105859391 | Q136: -0.1003670789 | R136: 0.3853211009 | S136: 42
O137: 110 | P137: 1.816530713 | Q137: 0.5062270744 | R137: 0.3909090909 | S137: 43
O138: 111 | P138: 1.73964369 | Q138: -0.8467997869 | R138: 0.3873873874 | S138: 43
O139: 112 | P139: 0.01317316708 | Q139: -0.1887654738 | R139: 0.3839285714 | S139: 43
O140: 113 | P140: 0.2074607631 | Q140: 0.6243977546 | R140: 0.3805309735 | S140: 43
O141: 114 | P141: 0.3033150105 | Q141: 0.6938781178 | R141: 0.3771929825 | S141: 43
O142: 115 | P142: 1.317141101 | Q142: -0.8417159287 | R142: 0.3739130435 | S142: 43
O143: 116 | P143: 0.7829370855 | Q143: 0.1963381059 | R143: 0.3793103448 | S143: 44
O144: 117 | P144: 0.2035373003 | Q144: 0.5044716816 | R144: 0.3846153846 | S144: 45
O145: 118 | P145: -0.01177239491 | Q145: 0.541808805 | R145: 0.3898305085 | S145: 46
O146: 119 | P146: -0.0297663966 | Q146: -0.504949635 | R146: 0.3865546218 | S146: 46
O147: 120 | P147: 0.05724931218 | Q147: -1.344248243 | R147: 0.3833333333 | S147: 46
O148: 121 | P148: 0.07589722434 | Q148: -1.384168456 | R148: 0.3801652893 | S148: 46
O149: 122 | P149: 0.3753015257 | Q149: 0.5871413693 | R149: 0.3770491803 | S149: 46
O150: 123 | P150: 1.248949082 | Q150: 0.5709338668 | R150: 0.3739837398 | S150: 46
O151: 124 | P151: 1.738303628 | Q151: -1.143611567 | R151: 0.3709677419 | S151: 46
O152: 125 | P152: 0.8859294177 | Q152: -0.8126307083 | R152: 0.368 | S152: 46
O153: 126 | P153: 0.9998734367 | Q153: -0.9500845883 | R153: 0.373015873 | S153: 47
O154: 127 | P154: 0.9713175151 | Q154: -0.3537130322 | R154: 0.3779527559 | S154: 48
O155: 128 | P155: 0.2432923343 | Q155: 0.4880789565 | R155: 0.3828125 | S155: 49
O156: 129 | P156: 0.4707483329 | Q156: -0.5724376682 | R156: 0.3875968992 | S156: 50
O157: 130 | P157: 0.4268673101 | Q157: -0.420247776 | R157: 0.3846153846 | S157: 50
O158: 131 | P158: 0.2456832392 | Q158: -1.418955999 | R158: 0.3816793893 | S158: 50
O159: 132 | P159: 1.540449139 | Q159: 0.3702383524 | R159: 0.3787878788 | S159: 50
O160: 133 | P160: 0.4552082867 | Q160: -0.5155294849 | R160: 0.3759398496 | S160: 50
O161: 134 | P161: 1.259376064 | Q161: -0.9174748621 | R161: 0.3731343284 | S161: 50
O162: 135 | P162: 0.4621233063 | Q162: 0.5147222469 | R162: 0.3777777778 | S162: 51
O163: 136 | P163: 0.1095736136 | Q163: 0.1985301702 | R163: 0.375 | S163: 51
O164: 137 | P164: 1.243321821 | Q164: -0.8742628587 | R164: 0.3722627737 | S164: 51
O165: 138 | P165: 1.123214613 | Q165: -0.1063108237 | R165: 0.3768115942 | S165: 52
O166: 139 | P166: 0.2872985028 | Q166: -0.09357505699 | R166: 0.381294964 | S166: 53
O167: 140 | P167: -0.0219259193 | Q167: -1.201797839 | R167: 0.3785714286 | S167: 53
O168: 141 | P168: 1.016543377 | Q168: -1.15474471 | R168: 0.3758865248 | S168: 53
O169: 142 | P169: 1.682366817 | Q169: -0.1817159344 | R169: 0.3802816901 | S169: 54
O170: 143 | P170: 0.6730349879 | Q170: -0.865163734 | R170: 0.3776223776 | S170: 54
O171: 144 | P171: 1.69865535 | Q171: -0.1292493988 | R171: 0.3819444444 | S171: 55
O172: 145 | P172: 0.7423509308 | Q172: -1.243498511 | R172: 0.3793103448 | S172: 55
O173: 146 | P173: 1.62697119 | Q173: -0.1224014408 | R173: 0.3767123288 | S173: 55
O174: 147 | P174: 1.85117531 | Q174: 0.7515570065 | R174: 0.3741496599 | S174: 55
O175: 148 | P175: 1.347602391 | Q175: -0.1794093594 | R175: 0.3716216216 | S175: 55
O176: 149 | P176: 1.169097012 | Q176: -0.3007979519 | R176: 0.3758389262 | S176: 56
O177: 150 | P177: 1.681902536 | Q177: -1.224161222 | R177: 0.38 | S177: 57
O178: 151 | P178: 0.3284294237 | Q178: -0.2655597538 | R178: 0.3774834437 | S178: 57
O179: 152 | P179: 1.543659939 | Q179: -0.07161404539 | R179: 0.375 | S179: 57
O180: 153 | P180: 1.824292377 | Q180: -0.08066594097 | R180: 0.3725490196 | S180: 57
O181: 154 | P181: 1.601622965 | Q181: 0.6467925353 | R181: 0.3701298701 | S181: 57
O182: 155 | P182: 1.908686951 | Q182: 0.08758633637 | R182: 0.3677419355 | S182: 57
O183: 156 | P183: 0.429152892 | Q183: -1.39561558 | R183: 0.3653846154 | S183: 57
O184: 157 | P184: 0.0128896785 | Q184: 0.6024570595 | R184: 0.3630573248 | S184: 57
O185: 158 | P185: 1.171898223 | Q185: 0.667167018 | R185: 0.3670886076 | S185: 58
O186: 159 | P186: 0.6569742971 | Q186: 0.4546805831 | R186: 0.3647798742 | S186: 58
O187: 160 | P187: 0.6854332546 | Q187: -0.8649175621 | R187: 0.3625 | S187: 58
O188: 161 | P188: 1.836163073 | Q188: 0.3403813712 | R188: 0.3664596273 | S188: 59
O189: 162 | P189: 1.211514021 | Q189: -0.5567488944 | R189: 0.3641975309 | S189: 59
O190: 163 | P190: -0.06450246474 | Q190: -0.347675093 | R190: 0.3680981595 | S190: 60
O191: 164 | P191: 0.5174331939 | Q191: -0.2767720517 | R191: 0.3658536585 | S191: 60
O192: 165 | P192: 1.155665338 | Q192: 0.6644997602 | R192: 0.3696969697 | S192: 61
O193: 166 | P193: 0.5671270461 | Q193: -0.3090836276 | R193: 0.3674698795 | S193: 61
O194: 167 | P194: 1.3847628 | Q194: -0.009963161611 | R194: 0.371257485 | S194: 62
O195: 168 | P195: 0.6656793309 | Q195: -0.978847912 | R195: 0.369047619 | S195: 62
O196: 169 | P196: 0.6292707518 | Q196: 0.512455777 | R196: 0.3668639053 | S196: 62
O197: 170 | P197: 1.121846607 | Q197: 0.7022854283 | R197: 0.3647058824 | S197: 62
O198: 171 | P198: 1.918427303 | Q198: -0.4764148053 | R198: 0.3625730994 | S198: 62
O199: 172 | P199: 1.401143758 | Q199: -0.5492318132 | R199: 0.3604651163 | S199: 62
O200: 173 | P200: 0.6922954933 | Q200: -0.4518572477 | R200: 0.3641618497 | S200: 63
O201: 174 | P201: 0.7832203352 | Q201: -0.5476017491 | R201: 0.367816092 | S201: 64
O202: 175 | P202: 0.7353136313 | Q202: -0.1983455967 | R202: 0.3714285714 | S202: 65
... 337 more rows

Sheet Brownian walks
A1: 1 | B1: 2 | C1: 3 | D1: 4 | E1: 5 | F1: 6 | G1: 7 | H1: 8 | I1: 9 | J1: 10 | K1: 11 | L1: 12 | M1: 13 | N1: 14 | O1: 15 | P1: 16 | Q1: 17 | R1: 18 | S1: 19 | T1: 20
B2: N | C2: x1 | D2: y1 | E2: a1 | F2: a2 | G2: d11 | H2: d12 | I2: d22
B3: 100 | C3: 0 | D3: 0 | E3: 0 | F3: 0 | G3: 1 | H3: 1 | I3: 1 | R3: α
R4: ΑΩ
C5: xrand | D5: yrand
B6: 1 | C6: 0 | D6: 0
B7: 2 | C7: -0.2723397017 | D7: -0.2177605629 | G7: x1 = | H7: y1 = | I7: =C6 -> 0 | J7: -1.273357391
B8: 3 | C8: -0.2042427063 | D8: 1.296743631 | G8: xfin = | H8: yfin = | I8: =D6 -> 0 | J8: -0.4877068996
B9: 4 | C9: 0.007268548012 | D9: 0.9890739918
B10: 5 | C10: 0.04605770111 | D10: 1.507783413
B11: 6 | C11: -0.38715446 | D11: 0.01674842834
B12: 7 | C12: 0.332116127 | D12: -0.1284239292
B13: 8 | C13: -0.3437236547 | D13: 0.4034936428
B14: 9 | C14: -0.09352684021 | D14: 0.488699913
B15: 10 | C15: -0.0638474226 | D15: 1.347757816
B16: 11 | C16: -1.456907272 | D16: 1.321366549
B17: 12 | C17: -2.514864326 | D17: 1.221390009
B18: 13 | C18: -2.741446495 | D18: -0.1625361443
B19: 14 | C19: -1.40221107 | D19: -0.3195199966
B20: 15 | C20: -0.9394159317 | D20: 0.5178802013
B21: 16 | C21: 0.120128274 | D21: 1.467604399 | G21: Уравнение броуновского движения со случайными компонентами ε1 и ε0
B22: 17 | C22: 1.630191803 | D22: 2.695859909 | G22: xi + 1 = a1 xi + d11 ε1 + d12ε0
B23: 18 | C23: 0.5321418047 | D23: 1.249228954 | G23: yi + 1 = a2 yi + d22 ε2 + d12ε0
B24: 19 | C24: -0.4063644409 | D24: 0.4471399784
B25: 20 | C25: 0.1045280695 | D25: 1.082017183
B26: 21 | C26: -0.2095079422 | D26: 1.499618053
B27: 22 | C27: 0.1609030962 | D27: 0.3517951965
B28: 23 | C28: -1.305933952 | D28: -0.6186983585
B29: 24 | C29: -1.773273826 | D29: -1.721077204
B30: 25 | C30: -1.109605789 | D30: -1.724711418
B31: 26 | C31: -1.403805614 | D31: -0.6661791801
B32: 27 | C32: -2.727907181 | D32: -0.6994712353
B33: 28 | C33: -3.401644111 | D33: -1.843595266
B34: 29 | C34: -2.646700859 | D34: -1.8128829
B35: 30 | C35: -2.406308055 | D35: -1.176825523
B36: 31 | C36: -2.138043404 | D36: -0.4351322651
B37: 32 | C37: -3.517582297 | D37: -0.4442894459
B38: 33 | C38: -2.484306335 | D38: 0.3339195251
B39: 34 | C39: -3.744248271 | D39: 0.2143263817
B40: 35 | C40: -2.362453461 | D40: 1.836122751
B41: 36 | C41: -3.12859571 | D41: 2.170626879
B42: 37 | C42: -3.982224464 | D42: 1.795957088
B43: 38 | C43: -5.515465617 | D43: 0.4027233124
B44: 39 | C44: -6.821974754 | D44: 0.2497308254
B45: 40 | C45: -6.184574485 | D45: -0.0931456089
B46: 41 | C46: -6.055921555 | D46: -1.068188667
B47: 42 | C47: -6.814869761 | D47: -1.230836391
B48: 43 | C48: -7.016546249 | D48: -1.163363218
B49: 44 | C49: -7.499666572 | D49: -1.508617163
B50: 45 | C50: -7.285902977 | D50: -2.074740887
B51: 46 | C51: -6.781315684 | D51: -1.585827827
B52: 47 | C52: -6.259583473 | D52: -1.804831743
B53: 48 | C53: -5.924152732 | D53: -0.6681339741
B54: 49 | C54: -6.277088165 | D54: -1.417852402
B55: 50 | C55: -4.894478679 | D55: -0.3576245308
B56: 51 | C56: -3.662353516 | D56: -0.5870893002
B57: 52 | C57: -2.76632154 | D57: -0.3740031719
B58: 53 | C58: -4.268185616 | D58: -0.622730732
B59: 54 | C59: -4.52172935 | D59: -0.3031234741
B60: 55 | C60: -4.368350029 | D60: -0.7614176273
B61: 56 | C61: -3.464344382 | D61: -1.279117823
B62: 57 | C62: -3.991067886 | D62: -2.248763084
B63: 58 | C63: -3.715008616 | D63: -1.256370068
B64: 59 | C64: -4.037668228 | D64: -1.496090651
B65: 60 | C65: -4.508150458 | D65: -1.27758193
B66: 61 | C66: -4.780146599 | D66: -2.342641354
B67: 62 | C67: -3.257702708 | D67: -1.894183159
B68: 63 | C68: -3.58137989 | D68: -2.204499483
B69: 64 | C69: -3.61130178 | D69: -2.645335436
B70: 65 | C70: -3.931747437 | D70: -1.641487122
B71: 66 | C71: -3.961518168 | D71: -3.251780033
B72: 67 | C72: -4.145908356 | D72: -3.623277426
B73: 68 | C73: -3.132868171 | D73: -2.930779219
B74: 69 | C74: -2.313485146 | D74: -1.525976658
B75: 70 | C75: -3.213356853 | D75: -1.988401413
B76: 71 | C76: -4.347403526 | D76: -1.640424967
B77: 72 | C77: -4.749302268 | D77: -1.595400095
B78: 73 | C78: -4.223638535 | D78: -0.7234659195
B79: 74 | C79: -4.772190928 | D79: -1.402936459
B80: 75 | C80: -3.756116867 | D80: -1.873434782
B81: 76 | C81: -5.376314521 | D81: -2.404395819
B82: 77 | C82: -5.500525475 | D82: -2.761115551
B83: 78 | C83: -5.815937877 | D83: -2.199547768
B84: 79 | C84: -4.630776405 | D84: -0.9974167347
B85: 80 | C85: -4.340748191 | D85: -1.567300081
B86: 81 | C86: -3.881877899 | D86: -0.1690158844
B87: 82 | C87: -3.23833549 | D87: 0.9967036247
B88: 83 | C88: -1.902961731 | D88: 1.176777124
B89: 84 | C89: -1.802454352 | D89: 2.371392488
B90: 85 | C90: -3.614216805 | D90: 0.5666880608
B91: 86 | C91: -3.195816875 | D91: 1.374233246
B92: 87 | C92: -3.411478996 | D92: 0.874427557
B93: 88 | C93: -2.426166892 | D93: 0.8916013241
B94: 89 | C94: -2.312227249 | D94: 1.300671577
B95: 90 | C95: -3.904385448 | D95: -0.08069181442
B96: 91 | C96: -4.386735916 | D96: 0.7788231373
B97: 92 | C97: -4.303377509 | D97: 0.1070349216
B98: 93 | C98: -4.068133354 | D98: -0.2246947289
B99: 94 | C99: -3.68648994 | D99: -0.3495779037
B100: 95 | C100: -4.185116768 | D100: -0.296864748
B101: 96 | C101: -3.124210715 | D101: -0.3754341602
B102: 97 | C102: -2.811073303 | D102: 0.4175300598
B103: 98 | C103: -2.267899394 | D103: 0.1026701927
B104: 99 | C104: -1.273357391 | D104: -0.4877068996
